bitfinex-derivatives/quotes_ETHF0:USTF0_20260207
["timestamp","ask_amount","ask_price","bid_price","bid_amount"]
[1770507186178,0.55770263,2085.1,2084.5,0.55579976]
[1770507186889,0.00359614,2085.1,2084.5,0.55579976]
[1770507187089,0.55770263,2085.1,2084.5,0.55579976]
[1770507191889,0.57877324,2085.0,2084.3,2.87464429]
[1770507192084,0.57877324,2084.9,2084.2,3.4461672]
[1770507195094,0.57877324,2084.9,2084.3,0.57152291]
[1770507195387,0.57877324,2084.9,2084.4,0.57152291]
[1770507200290,0.57877324,2084.9,2084.2,2.87464429]
[1770507200487,0.57877324,2084.9,2084.3,0.57152291]
[1770507200689,0.57877324,2085.0,2084.4,0.57152291]
[1770507200992,0.57877324,2085.0,2084.5,0.57152291]
[1770507202492,0.57877324,2085.0,2084.3,7.1904074]
[1770507202692,0.57877324,2085.0,2084.4,0.57152291]
[1770507203496,0.57877324,2085.0,2084.3,3.4461672]
[1770507203697,0.57877324,2084.9,2084.3,0.57152291]
[1770507203887,0.57877324,2084.9,2084.2,3.4461672]
[1770507206998,0.57877324,2084.8,2084.1,0.57152291]
[1770507207198,0.57877324,2084.8,2084.0,3.4461672]
[1770507207394,0.57877324,2084.6,2084.0,0.57152291]
[1770507207594,0.57877324,2084.6,2083.9,3.4461672]
[1770507208187,0.57877324,2084.6,2083.8,3.4461672]
[1770507208393,0.57877324,2084.5,2083.8,0.57152291]
[1770507208595,2.86157296,2084.6,2083.8,0.57152291]
[1770507208899,2.86157296,2084.8,2084.0,0.57152291]
[1770507209198,42.55313778,2084.9,2084.2,0.57152291]
[1770507209199,3.4403462,2084.9,2084.2,0.57152291]
[1770507209595,0.57877324,2084.9,2084.2,0.57152291]
[1770507209788,0.57877324,2084.5,2083.9,0.57152291]
[1770507210592,2.86157296,2084.7,2083.9,0.57152291]
[1770507210797,3.4403462,2084.8,2084.0,0.57152291]
[1770507211299,0.57877324,2084.8,2084.0,0.57152291]
[1770507211492,0.57877324,2084.8,2084.1,0.57152291]
[1770507213101,3.44394234,2085.1,2084.3,0.57152291]
[1770507214095,0.58236938,2085.1,2084.4,0.57152291]
[1770507215400,0.00359614,2085.1,2084.4,3.4461672]
[1770507215601,0.00359614,2085.1,2084.5,0.56426221]
[1770507217493,0.00359614,2085.1,2084.5,3.4389065]
[1770507217698,3.41190778,2085.5,2084.7,0.56426221]
[1770507218203,0.55033482,2085.4,2084.7,0.56426221]
[1770507218801,0.55485271,2085.4,2084.7,0.56426221]
[1770507218993,0.00451789,2085.4,2084.7,0.56426221]
[1770507219195,0.55485271,2085.4,2084.7,0.56426221]
[1770507219800,0.00451789,2085.4,2084.7,0.56426221]
[1770507220305,0.00451789,2085.4,2084.8,0.56426221]
[1770507220504,2.86157296,2085.6,2084.8,0.56839642]
[1770507220804,31.907,2087.0,2085.2,0.56426221]
[1770507220805,0.55033482,2085.9,2085.2,0.56426221]
[1770507220998,0.55033482,2085.9,2085.3,0.56426221]
[1770507221395,0.55033482,2085.9,2085.1,0.56426221]
[1770507221597,0.55596202,2085.9,2085.1,0.56426221]
[1770507222709,0.55596202,2085.9,2085.0,3.4389065]
[1770507222902,0.55596202,2085.9,2085.0,0.56426221]
[1770507227620,0.0056272,2085.9,2085.1,0.56426221]
[1770507227817,0.55596202,2085.9,2085.1,0.56426221]
[1770507228010,0.0056272,2085.9,2085.1,0.56426221]
[1770507228916,0.0056272,2085.9,2085.2,0.56426221]
[1770507231015,0.55596202,2085.9,2085.2,0.56426221]
[1770507234315,0.0056272,2085.9,2085.2,0.56426221]
[1770507234510,0.55596202,2085.9,2085.2,0.56426221]
[1770507237017,0.55596202,2085.9,2085.1,0.56426221]
[1770507240615,0.55596202,2085.9,2084.9,2.87464429]
[1770507240822,0.55596202,2085.9,2084.9,0.56426221]
[1770507241219,0.55596202,2085.9,2085.0,0.56426221]
[1770507241421,0.0056272,2085.9,2085.2,0.56426221]
[1770507241627,0.55033482,2086.3,2085.3,0.56426221]
[1770507242525,0.55586906,2086.3,2085.3,0.56426221]
[1770507242922,0.00553424,2086.3,2085.4,0.56426221]
[1770507243120,0.00553424,2086.3,2085.5,0.56426221]
[1770507244123,0.00553424,2086.3,2085.5,3.4389065]
[1770507244324,0.00553424,2086.3,2085.6,0.56426221]
[1770507245327,0.55586906,2086.3,2085.6,0.56426221]
[1770507246119,0.55586906,2086.3,2085.6,3.4389065]
[1770507246321,0.55586906,2086.3,2085.7,0.56743979]
[1770507247526,0.00553424,2086.3,2085.7,0.56743979]
[1770507249327,0.5720757,2086.3,2085.7,0.56743979]
[1770507250327,0.00553424,2086.3,2085.7,7.75784719]
[1770507250523,0.56654146,2086.7,2085.9,0.56743979]
[1770507250724,0.56654146,2086.7,2086.0,0.56743979]
[1770507251325,0.56654146,2086.8,2086.0,0.56743979]
[1770507251727,0.57223553,2086.8,2086.0,0.56743979]
[1770507251928,0.57223553,2086.8,2086.1,0.52982815]
[1770507256732,0.57223553,2086.8,2085.8,2.87464429]
[1770507256931,0.57230219,2086.7,2085.7,0.52982815]
[1770507257134,0.57230219,2086.7,2085.7,3.40447244]
[1770507257327,0.57230219,2086.6,2085.6,2.87464429]
[1770507257535,0.57230219,2086.5,2085.6,0.52982815]
[1770507258133,0.57230219,2086.4,2085.5,0.52982815]
[1770507258335,0.57230219,2086.3,2085.3,0.52982815]
[1770507259631,0.57230219,2086.2,2085.3,0.52982815]
[1770507260937,0.57230219,2086.1,2085.2,0.52982815]
[1770507262238,0.57230219,2086.2,2085.2,0.52982815]
[1770507262535,0.57230219,2086.2,2085.3,0.52982815]
[1770507265440,3.43387515,2086.3,2085.3,0.52982815]
[1770507265641,0.57230219,2086.5,2085.5,0.52982815]
[1770507265842,0.57230219,2086.5,2085.6,0.52982815]
[1770507266140,0.57230219,2086.6,2085.6,0.52982815]
[1770507266341,0.57230219,2086.5,2085.6,0.52982815]
[1770507267537,0.57230219,2086.5,2085.5,2.87464429]
[1770507267734,0.57230219,2086.3,2085.4,0.52982815]
[1770507268537,0.57230219,2086.2,2085.4,0.52982815]
[1770507269734,0.57230219,2086.2,2085.2,2.87464429]
[1770507270034,0.57230219,2086.2,2085.3,0.52982815]
[1770507270246,0.57230219,2086.1,2085.3,0.52982815]
[1770507275943,0.57901384,2086.0,2085.1,0.55355632]
[1770507281143,0.57901384,2086.2,2085.2,0.55355632]
[1770507281446,0.57901384,2086.2,2085.3,0.55355632]
[1770507282348,3.4405868,2086.4,2085.4,0.55355632]
[1770507282549,0.57901384,2086.4,2085.6,0.55355632]
[1770507284543,0.57901384,2086.3,2085.6,0.55355632]
[1770507284852,0.57901384,2086.4,2085.6,0.55355632]
[1770507285150,0.57901384,2086.4,2085.7,0.55355632]
[1770507290255,2.86157296,2086.5,2085.7,0.55355632]
[1770507290456,3.4405868,2086.5,2085.7,0.55355632]
[1770507290653,0.57901384,2086.4,2085.7,0.55355632]
[1770507298959,0.57901384,2086.0,2085.5,2.86935757]
[1770507299155,0.57901384,2086.0,2085.6,0.55355632]
[1770507300362,0.97576283,2086.1,2085.6,0.55355632]
[1770507300363,3.43816704,2086.5,2085.8,0.55355632]
[1770507300661,0.57901384,2086.5,2086.0,0.55355632]
[1770507301661,0.57901384,2086.6,2086.0,0.55355632]
[1770507301859,0.57901384,2086.7,2086.0,0.55355632]
[1770507302061,0.00569407,2086.8,2086.0,4.39867672]
[1770507302259,0.58470791,2086.8,2086.1,0.55355632]
[1770507302457,0.57901384,2086.6,2086.1,0.55355632]
[1770507303657,0.57901384,2086.7,2086.1,0.55355632]
[1770507304058,0.00569407,2086.8,2086.1,0.55355632]
[1770507304256,0.00569407,2086.8,2086.5,0.55355632]
[1770507304457,0.61719923,2087.2,2086.5,0.55355632]
[1770507305359,0.61719923,2087.2,2086.7,0.55355632]
[1770507305563,0.62177433,2087.2,2086.7,0.55747163]
[1770507305966,0.5264206,2087.6,2086.7,0.55747163]
[1770507306263,0.5264206,2087.8,2086.9,0.55134585]
[1770507307054,0.5307052,2087.8,2086.9,0.55134585]
[1770507307260,0.0042846,2087.8,2086.9,3.42070342]
[1770507307458,0.0042846,2087.8,2087.0,0.55134585]
[1770507307765,0.5307052,2087.8,2087.0,0.55134585]
[1770507310368,0.0042846,2087.8,2087.0,0.55134585]
[1770507312062,0.568095,2088.1,2087.0,0.55134585]
[1770507312263,0.568095,2088.1,2087.1,0.53574234]
[1770507312666,0.568095,2088.6,2087.1,0.53574234]
[1770507313067,0.57343796,2088.6,2087.1,0.53574234]
[1770507316768,0.568095,2088.5,2087.1,0.53574234]
[1770507328180,0.568095,2088.4,2087.1,0.53574234]
[1770507329177,0.568095,2088.4,2087.2,0.53574234]
[1770507331279,0.568095,2088.4,2087.3,0.53574234]
[1770507331280,0.568095,2088.3,2087.3,0.53574234]
[1770507332680,0.568095,2088.2,2087.3,0.53574234]
[1770507334286,0.568095,2088.1,2087.4,0.53574234]
[1770507335291,2.8591532,2088.2,2087.5,0.53574234]
[1770507335892,0.57037679,2088.1,2087.5,0.53574234]
[1770507336580,2.8591532,2088.2,2087.5,0.53574234]
[1770507336781,2.8591532,2088.2,2087.6,0.54224237]
[1770507336989,3.42952999,2088.2,2087.6,0.54224237]
[1770507337189,2.8591532,2088.2,2087.6,0.54224237]
[1770507337694,3.42952999,2088.2,2087.6,0.54224237]
[1770507339592,0.57037679,2088.1,2087.6,0.54224237]
[1770507339795,0.57037679,2088.0,2087.4,2.86935757]
[1770507339988,0.57037679,2087.9,2087.3,2.86935757]
[1770507340188,0.57037679,2087.9,2087.3,3.41159994]
[1770507342293,0.57037679,2087.9,2087.4,0.54224237]
[1770507342891,0.57037679,2088.1,2087.7,0.54224237]
[1770507344190,2.8591532,2088.3,2087.7,0.54224237]
[1770507344396,2.8591532,2088.5,2087.9,0.54224237]
[1770507344589,3.43487295,2088.6,2088.1,0.54224237]
[1770507344788,0.57037679,2088.5,2088.1,0.54224237]
[1770507348398,0.00534296,2088.6,2088.2,0.54224237]
[1770507348592,0.00534296,2088.6,2088.2,0.54742319]
[1770507348999,0.57037679,2088.9,2088.2,0.54742319]
[1770507349197,0.57037679,2088.9,2088.3,0.54224237]
[1770507350097,0.57568193,2088.9,2088.3,0.54224237]
[1770507353702,0.57568193,2088.9,2088.2,0.00518082]
[1770507353901,0.57568193,2088.9,2088.2,0.54742319]
[1770507354799,0.57568193,2088.9,2088.2,0.00518082]
[1770507355005,0.57037679,2088.8,2087.9,0.54224237]
[1770507355802,0.57037679,2088.8,2087.7,3.41159994]
[1770507355996,0.57037679,2088.8,2087.8,0.54224237]
[1770507356198,0.57037679,2088.7,2087.8,0.54224237]
[1770507357804,0.57037679,2088.7,2087.7,2.87491177]
[1770507358004,0.57037679,2088.7,2087.7,0.54779657]
[1770507358705,0.57037679,2088.7,2087.8,0.54224237]
[1770507360507,0.57037679,2088.8,2087.8,0.54224237]
[1770507360707,0.57568193,2088.9,2088.0,0.54224237]
[1770507363310,5.6310934,2089.2,2088.4,7.18512068]
[1770507363504,0.5807839,2089.5,2088.8,2.86935757]
[1770507363703,0.5807839,2089.4,2088.8,2.86935757]
[1770507363904,0.5807839,2089.4,2088.7,2.86935757]
[1770507364103,15.0,2089.3,2088.7,2.86935757]
[1770507364306,0.00383342,2089.3,2088.8,2.86935757]
[1770507364507,0.00383342,2089.3,2088.9,2.86935757]
[1770507364709,0.00383342,2089.3,2088.8,4.31576311]
[1770507364710,0.58055927,2089.2,2088.5,4.31576311]
[1770507365105,15.0,2089.1,2088.5,4.31576311]
[1770507365311,15.58055927,2089.1,2088.4,4.31576311]
[1770507365503,0.58055927,2089.0,2088.3,0.00081704]
[1770507365908,15.0,2088.9,2088.3,0.00081704]
[1770507366610,0.56122064,2089.1,2088.3,0.00081704]
[1770507366809,15.0,2089.0,2088.5,0.0394943]
[1770507367008,15.56122064,2089.2,2088.5,0.0394943]
[1770507367309,15.0,2089.2,2088.5,0.0394943]
[1770507367605,0.56122064,2089.1,2088.5,0.0394943]
[1770507368005,0.56122064,2088.9,2088.5,0.0394943]
[1770507368510,15.56122064,2088.9,2088.5,0.0394943]
[1770507369010,0.56508282,2089.1,2088.5,0.0394943]
[1770507369209,15.0,2089.2,2088.5,0.0394943]
[1770507369808,0.00383342,2089.3,2088.8,0.03176994]
[1770507370111,15.00383342,2089.3,2088.8,0.03176994]
[1770507370311,0.57256228,2089.2,2088.8,0.03176994]
[1770507370512,15.5763957,2089.3,2088.8,0.03176994]
[1770507370713,0.57256228,2089.2,2088.8,0.03176994]
[1770507371114,15.5763957,2089.3,2088.8,0.03176994]
[1770507371612,15.00383342,2089.3,2088.8,0.03176994]
[1770507373212,15.5760908,2089.3,2088.8,0.03176994]
[1770507373412,15.00383342,2089.3,2088.8,0.03176994]
[1770507373613,15.5760908,2089.3,2088.8,0.03176994]
[1770507373913,15.5760908,2089.3,2088.4,7.14273387]
[1770507373914,0.57225738,2089.2,2088.5,0.02339913]
[1770507374408,0.57225738,2089.0,2088.5,0.02339913]
[1770507374913,15.0,2088.9,2088.5,0.02339913]
[1770507375314,15.57225738,2088.9,2088.5,0.02339913]
[1770507377012,0.57225738,2088.8,2088.4,0.02481394]
[1770507378818,15.57225738,2088.7,2088.4,0.02481394]
[1770507379016,0.57225738,2088.7,2088.2,4.31576311]
[1770507379208,0.57225738,2088.5,2088.2,0.01877789]
[1770507379414,0.46116543,2088.5,2088.2,0.01877789]
[1770507379713,0.57225738,2089.0,2088.2,0.01877789]
[1770507379920,0.57225738,2088.9,2088.2,0.01877789]
[1770507380815,15.0,2088.8,2088.2,0.01877789]
[1770507381016,0.57225738,2088.7,2088.2,0.13160411]
[1770507381216,0.57225738,2088.7,2088.0,3.86708837]
[1770507381420,15.57225738,2088.6,2088.1,0.13160411]
[1770507381718,0.57225738,2089.1,2088.1,0.13160411]
[1770507383311,0.57225738,2088.9,2088.1,0.13160411]
[1770507384921,0.57225738,2088.7,2088.1,0.13160411]
[1770507385123,0.57225738,2088.5,2088.1,0.13160411]
[1770507385518,0.57225738,2088.3,2087.8,0.12947362]
[1770507386019,0.57225738,2088.1,2087.8,0.12947362]
[1770507386215,0.57225738,2088.1,2087.3,5.84366071]
[1770507386419,0.57225738,2087.9,2087.4,0.13738804]
[1770507386818,15.57225738,2087.8,2087.4,0.13738804]
[1770507387121,15.57225738,2087.8,2087.2,5.71418709]
[1770507387122,0.57225738,2087.8,2087.2,5.71418709]
[1770507387323,0.57225738,2087.6,2087.1,0.13738804]
[1770507387623,0.57721814,2087.6,2087.1,0.0044521]
[1770507388215,0.57225738,2087.4,2086.7,0.13738804]
[1770507388421,0.57225738,2087.4,2086.6,5.85225696]
[1770507388621,0.57225738,2087.2,2086.6,5.85225696]
[1770507388822,0.57225738,2087.2,2086.6,0.45052138]
[1770507389020,0.57225738,2087.0,2086.5,0.13806987]
[1770507389224,0.57225738,2087.0,2086.3,5.85225696]
[1770507389428,0.57225738,2086.8,2086.2,6.16237735]
[1770507389815,15.57225738,2086.7,2086.3,0.13806987]
[1770507390020,0.57225738,2086.7,2086.2,6.16237735]
[1770507390224,0.57225738,2086.7,2086.3,0.13806987]
[1770507390422,0.57225738,2086.7,2086.3,0.1437806]
[1770507390728,0.57225738,2086.6,2086.3,0.00571073]
[1770507390928,15.57225738,2086.7,2086.2,0.14629311]
[1770507391426,0.57225738,2086.6,2086.1,0.14629311]
[1770507391817,15.0,2086.6,2086.1,0.15138814]
[1770507392019,0.57225738,2087.5,2086.1,0.15138814]
[1770507392221,0.57225738,2087.0,2086.1,0.15138814]
[1770507392620,0.57225738,2087.4,2086.3,0.14689687]
[1770507392821,0.57225738,2087.2,2086.3,0.14689687]
[1770507393624,0.57225738,2087.4,2086.3,0.14689687]
[1770507393824,15.0,2087.4,2086.5,0.14689687]
[1770507394029,0.00496076,2087.6,2086.8,0.14689687]
[1770507394225,15.0,2087.5,2086.8,0.14689687]
[1770507395328,0.57721814,2087.6,2086.8,0.14689687]
[1770507395529,15.57225738,2087.5,2086.8,0.14689687]
[1770507395732,15.0,2087.5,2086.8,0.14689687]
[1770507395931,0.00496076,2087.6,2086.8,0.14689687]
[1770507396132,0.00496076,2087.6,2086.9,0.15874279]
[1770507396432,0.00496076,2087.6,2086.8,0.20330096]
[1770507396433,0.53376953,2087.5,2086.8,0.20330096]
[1770507396633,0.53376953,2087.3,2086.8,0.20330096]
[1770507397126,15.0,2087.2,2086.8,0.20330096]
[1770507397333,15.53800763,2087.2,2086.8,0.20330096]
[1770507397633,15.0042381,2087.2,2086.8,0.20330096]
[1770507398030,0.53376953,2087.1,2086.6,0.20330096]
[1770507398934,15.53376953,2087.1,2086.6,0.20330096]
[1770507399434,0.53376953,2087.0,2086.4,5.92120127]
[1770507399635,0.53376953,2087.0,2086.4,0.20701418]
[1770507399831,0.30549226,2086.8,2086.4,0.20701418]
[1770507400030,0.07692848,2086.8,2086.2,0.56686243]
[1770507400232,0.53376953,2086.7,2086.2,0.56686243]
[1770507400731,15.53376953,2086.6,2086.2,0.56686243]
[1770507400932,0.53376953,2086.6,2086.2,0.56686243]
[1770507401128,15.53376953,2086.6,2086.2,0.56686243]
[1770507401831,0.53376953,2086.5,2086.2,0.56686243]
[1770507402430,0.53376953,2086.5,2086.1,0.88091597]
[1770507402734,15.0,2086.4,2086.1,0.88091597]
[1770507402930,14.77616385,2086.4,2086.1,0.88091597]
[1770507403236,0.53376953,2086.3,2085.4,0.56686243]
[1770507403534,0.53376953,2086.2,2085.5,0.56686243]
[1770507403730,0.53376953,2086.0,2085.5,0.56686243]
[1770507403933,0.53376953,2086.0,2085.3,1.2463737]
[1770507404135,0.53376953,2085.8,2085.3,1.2463737]
[1770507404332,0.53376953,2085.8,2085.3,1.25219172]
[1770507404531,0.53376953,2085.6,2085.3,1.25219172]
[1770507404732,0.31631153,2085.6,2085.3,0.30819172]
[1770507405035,15.09247538,2085.6,2085.3,0.30819172]
[1770507405235,15.09247538,2085.6,2085.3,0.00581802]
[1770507405531,0.53376953,2085.5,2085.1,0.56686243]
[1770507405732,0.53376953,2085.5,2085.0,0.56686243]
[1770507405937,14.77616385,2085.4,2085.0,0.56686243]
[1770507406239,0.00555322,2085.6,2085.0,0.56686243]
[1770507406437,14.78171707,2085.6,2085.0,0.57089192]
[1770507407237,15.3154866,2085.6,2085.1,0.56686243]
[1770507408939,0.5803271,2086.9,2085.1,0.56686243]
[1770507409135,0.5803271,2086.5,2085.2,7.09047868]
[1770507409335,0.5803271,2086.5,2085.3,5.71418709]
[1770507409638,10.02605875,2086.4,2085.4,5.71418709]
[1770507409832,0.0054292,2086.4,2085.4,5.71418709]
[1770507410030,0.5803271,2087.0,2085.7,5.95406709]
[1770507410231,0.5803271,2087.0,2085.8,5.71418709]
[1770507410937,7.59754581,2086.9,2085.9,5.71418709]
[1770507411134,7.60185706,2086.9,2086.0,5.71418709]
[1770507411335,7.09233706,2086.9,2086.2,4.26129967]
[1770507411637,0.59189116,2088.2,2086.3,4.26129967]
[1770507411837,0.59189116,2087.4,2086.5,4.26129967]
[1770507412231,0.59189116,2087.4,2086.6,4.26129967]
[1770507412436,6.57469787,2087.3,2086.6,4.26129967]
[1770507412635,6.57829687,2087.3,2086.6,4.26700362]
[1770507413237,0.59503255,2087.2,2086.6,0.00570395]
[1770507413841,7.16973042,2087.1,2086.6,0.00570395]
[1770507414036,6.57469787,2087.1,2086.6,0.00570395]
[1770507414236,6.57469787,2087.1,2086.6,4.26700362]
[1770507414535,7.17074574,2087.1,2086.6,4.26700362]
[1770507414742,6.57469787,2087.1,2086.6,4.26700362]
[1770507415036,7.17074574,2087.1,2086.6,4.26700362]
[1770507416142,7.17074574,2087.1,2086.7,4.26129967]
[1770507416844,6.57469787,2087.1,2086.7,4.26129967]
[1770507417143,6.06880383,2087.1,2086.7,4.26129967]
[1770507417347,6.06880383,2087.3,2086.8,4.26129967]
[1770507417642,6.06880383,2087.3,2086.9,4.26129967]
[1770507418234,6.07488906,2087.3,2086.9,4.26129967]
[1770507418841,6.67110939,2087.3,2086.9,4.26129967]
[1770507419045,0.59622033,2087.2,2086.9,4.26129967]
[1770507419241,6.66502416,2087.1,2086.9,4.26129967]
[1770507419441,0.59622033,2087.0,2086.8,3.31729967]
[1770507420036,6.06880383,2086.9,2086.6,5.71989104]
[1770507421943,0.59622033,2087.0,2086.6,5.71989104]
[1770507422144,6.06880383,2086.9,2086.6,5.71989104]
[1770507422543,4.64361383,2086.9,2086.6,5.71989104]
[1770507422738,5.24269951,2086.8,2086.6,5.71989104]
[1770507422942,0.59908568,2087.1,2086.3,5.71418709]
[1770507423949,4.64361383,2087.0,2086.4,5.71418709]
[1770507424650,0.60166282,2087.3,2086.8,2.84925457]
[1770507426148,0.60166282,2087.3,2086.9,2.84925457]
[1770507429349,0.60166282,2087.3,2087.0,2.84925457]
[1770507430151,0.00038128,2087.3,2087.0,2.84925457]
[1770507431252,0.00038128,2087.3,2087.1,2.84925457]
[1770507434160,0.00038128,2087.3,2087.2,2.84925457]
[1770507435661,0.00038128,2087.3,2087.0,5.71418709]
[1770507436457,0.00038128,2087.3,2086.9,5.71418709]
[1770507436766,0.00038128,2087.3,2086.9,8.56344166]
[1770507437161,0.00038128,2087.3,2087.0,5.71418709]
[1770507437865,0.00038128,2087.3,2087.1,5.71418709]
[1770507438168,0.00038128,2087.3,2087.2,5.71418709]
[1770507438362,0.59810091,2087.9,2087.2,5.71418709]
[1770507438666,0.59810091,2087.9,2087.2,8.56344166]
[1770507439259,0.59810091,2087.9,2087.3,5.71418709]
[1770507439460,0.60147875,2087.9,2087.3,5.71418709]
[1770507439661,0.60147875,2087.9,2087.2,8.56344166]
[1770507439962,0.60147875,2087.9,2087.2,5.71418709]
[1770507440161,0.60147875,2087.9,2087.3,5.71418709]
[1770507441366,0.00337784,2087.9,2087.5,5.71418709]
[1770507441560,0.60119816,2087.9,2087.6,5.71418709]
[1770507441757,0.60119816,2087.9,2087.5,5.71418709]
[1770507441960,0.60119816,2087.9,2087.6,5.71418709]
[1770507442163,0.60119816,2087.9,2087.5,8.56344166]
[1770507444167,0.00337784,2087.9,2087.5,8.56344166]
[1770507444369,0.59937659,2088.2,2087.7,5.71418709]
[1770507444764,0.59937659,2089.0,2087.8,2.84925457]
[1770507444964,0.59937659,2089.0,2087.8,3.15600322]
[1770507445269,0.59937659,2089.0,2087.8,8.87019031]
[1770507445471,0.60285126,2089.0,2087.9,5.71418709]
[1770507447068,0.60285126,2089.0,2088.0,2.84925457]
[1770507448573,0.60285126,2089.0,2087.8,6.02507523]
[1770507448776,0.60285126,2089.0,2087.9,2.84925457]
[1770507449273,0.60285126,2089.0,2088.0,5.71418709]
[1770507449471,0.60285126,2089.0,2088.1,4.29008304]
[1770507449777,0.60285126,2089.0,2088.1,7.13933761]
[1770507449965,0.60285126,2089.0,2088.2,4.29008304]
[1770507450166,0.60285126,2089.0,2088.1,7.13933761]
[1770507450572,0.60285126,2089.0,2088.2,4.29008304]
[1770507450771,0.60285126,2089.0,2088.3,2.84925457]
[1770507451274,0.60285126,2089.0,2088.0,4.29008304]
[1770507451473,0.60285126,2089.0,2087.9,2.24883689]
[1770507451875,0.60285126,2089.0,2088.0,2.24883689]
[1770507452471,0.60285126,2089.0,2087.8,0.00413949]
[1770507452775,0.60285126,2089.0,2087.9,2.24883689]
[1770507456077,0.60285126,2089.0,2087.9,2.77489256]
[1770507456680,0.60285126,2089.0,2088.0,0.52605567]
[1770507457374,0.60285126,2089.0,2088.1,0.52605567]
[1770507457773,0.60285126,2089.0,2088.0,4.29008304]
[1770507457774,0.60285126,2089.0,2088.2,2.24883689]
[1770507458878,0.60285126,2089.0,2088.1,0.52605567]
[1770507459176,0.60285126,2089.0,2088.2,2.24883689]
[1770507460269,0.60285126,2089.0,2088.0,4.29008304]
[1770507460585,0.52383035,2088.6,2087.3,6.24024276]
[1770507460973,0.52383035,2088.6,2087.4,2.24883689]
[1770507461576,0.52383035,2088.6,2087.3,6.24024276]
[1770507461577,0.52383035,2088.2,2087.3,0.14278053]
[1770507461779,0.52383035,2088.2,2086.9,0.52605567]
[1770507461780,0.41991948,2088.1,2086.9,0.52605567]
[1770507462370,0.41970283,2088.0,2086.9,0.52605567]
[1770507462778,0.41970283,2088.0,2086.9,0.53120898]
[1770507463478,0.41970283,2088.0,2086.9,0.00515331]
[1770507466878,0.41970283,2088.0,2086.9,0.53120898]
[1770507471988,0.42590702,2088.4,2086.9,0.53120898]
[1770507481193,0.42590702,2088.4,2087.0,0.52605567]
[1770507481588,0.42590702,2088.4,2087.2,0.52605567]
[1770507481891,0.42590702,2088.4,2087.1,0.52605567]
[1770507482089,0.4211698,2088.3,2087.1,0.52605567]
[1770507482787,0.46235999,2088.2,2087.1,0.52605567]
[1770507483790,0.45720668,2087.7,2086.5,0.52605567]
[1770507484794,0.45720668,2087.7,2086.5,0.53050782]
[1770507487798,43.19985378,2087.7,2086.5,0.00445215]
[1770507487994,0.44520949,2087.6,2086.5,0.00445215]
[1770507488296,0.44520949,2087.5,2086.5,0.00445215]
[1770507488498,0.44899853,2087.5,2086.5,0.00445215]
[1770507488794,0.44674876,2087.4,2086.5,0.00445215]
[1770507489195,0.44674876,2087.3,2086.5,0.00445215]
[1770507490294,0.44674876,2087.3,2086.3,0.56106276]
[1770507490696,0.44674876,2087.3,2086.2,0.56106276]
[1770507491295,0.44674876,2087.3,2086.2,0.56625854]
[1770507491499,0.44674876,2087.3,2086.2,0.00519578]
[1770507491999,0.44674876,2087.3,2086.2,0.57155336]
[1770507494699,0.44674876,2087.3,2086.2,0.00519578]
[1770507496300,0.44674876,2087.3,2086.2,0.57155336]
[1770507501100,0.44086039,2087.0,2086.2,0.57155336]
[1770507502610,0.44086039,2087.0,2086.2,0.00519578]
[1770507503104,0.44086039,2087.0,2086.1,0.56635758]
[1770507503411,0.44086039,2087.0,2085.8,0.56635758]
[1770507504407,0.44086039,2087.0,2085.8,0.57251138]
[1770507505008,0.44079716,2086.6,2085.8,0.57251138]
[1770507505806,0.44079716,2086.9,2085.8,0.57251138]
[1770507506408,0.44031901,2087.1,2085.8,0.57251138]
[1770507506608,0.44031901,2087.1,2085.9,0.56635758]
[1770507507203,0.44031901,2087.1,2086.0,0.56635758]
[1770507507605,0.44031901,2087.1,2086.1,0.56635758]
[1770507508313,0.44031901,2087.1,2086.2,0.56635758]
[1770507509416,42.74643614,2087.5,2086.2,0.56635758]
[1770507509710,0.00378904,2087.5,2086.5,0.56635758]
[1770507509902,0.00378904,2087.5,2086.6,0.56635758]
[1770507512112,0.43790021,2087.5,2086.6,0.56635758]
[1770507512312,0.43790021,2087.5,2086.7,0.56635758]
[1770507520412,0.00378904,2087.5,2086.7,0.56635758]
[1770507520810,0.44868767,2087.5,2086.7,0.56635758]
[1770507524819,0.00378904,2087.5,2086.8,0.57824218]
[1770507525317,0.44401369,2087.9,2086.9,0.57824218]
[1770507526517,0.44928005,2087.9,2086.9,0.57824218]
[1770507526918,0.44928005,2087.9,2087.0,0.57824218]
[1770507536419,0.44928005,2087.9,2087.1,0.57824218]
[1770507539933,0.41707353,2087.7,2086.8,3.44188447]
[1770507540233,0.41707353,2087.6,2086.8,0.57824218]
[1770507541128,0.41707353,2087.6,2086.7,2.86364229]
[1770507541433,0.42287194,2087.3,2086.6,0.57824218]
[1770507541831,42.7426471,2087.4,2086.6,0.57824218]
[1770507542138,0.42287194,2087.6,2086.7,0.57824218]
[1770507542337,2.8577493,2087.6,2086.7,0.57824218]
[1770507542533,2.8577493,2087.7,2086.8,0.57824218]
[1770507542733,42.7426471,2087.8,2086.8,0.57824218]
[1770507542734,2.8577493,2087.8,2086.9,0.57824218]
[1770507543239,0.00526636,2087.9,2087.1,0.57824218]
[1770507544535,0.5492923,2088.3,2087.3,0.57824218]
[1770507545241,0.5492923,2088.3,2087.4,0.57824218]
[1770507545441,3.4070416,2088.5,2087.4,0.57824218]
[1770507545643,3.41203655,2088.5,2087.4,0.58171504]
[1770507545942,0.60085344,2088.4,2087.4,0.58171504]
[1770507549335,0.00499495,2088.5,2087.4,0.58171504]
[1770507549936,0.6052428,2088.5,2087.4,0.58171504]
[1770507551439,0.00499495,2088.5,2087.5,0.62275309]
[1770507551639,0.00499495,2088.5,2087.6,0.62275309]
[1770507551947,0.60302113,2088.5,2087.6,0.62275309]
[1770507557051,0.00499495,2088.5,2087.6,0.62275309]
[1770507563255,0.60347871,2088.5,2087.6,0.62275309]
[1770507567049,0.59130731,2088.4,2087.6,0.62275309]
[1770507570052,0.59130731,2088.4,2087.4,0.00347286]
[1770507570053,0.59130731,2088.4,2087.5,0.60000711]
[1770507570858,3.44486062,2088.4,2087.5,0.60000711]
[1770507571059,0.58684895,2088.3,2087.5,0.60000711]
[1770507571360,0.58530038,2088.2,2087.5,0.60000711]
[1770507572856,0.5920196,2088.1,2087.5,0.60000711]
[1770507573052,2.85355331,2088.2,2087.5,0.60000711]
[1770507573256,3.44557291,2088.3,2087.5,0.60000711]
[1770507574458,0.58851188,2088.2,2087.5,0.60000711]
[1770507574866,0.58726471,2088.1,2087.4,0.60347997]
[1770507575454,0.58535333,2087.9,2087.2,0.60000711]
[1770507576457,0.58535333,2087.9,2087.2,0.60592075]
[1770507577866,0.58535333,2087.9,2087.2,0.00591364]
[1770507579261,0.58811284,2087.8,2087.2,0.00591364]
[1770507581062,0.58811284,2087.8,2087.2,0.63594565]
[1770507581260,3.43490407,2088.1,2087.2,0.63594565]
[1770507581461,0.58116448,2088.0,2087.2,0.63594565]
[1770507582465,0.5803503,2088.2,2087.2,0.63594565]
[1770507583269,2.85355331,2088.3,2087.2,0.63594565]
[1770507583572,0.57794149,2088.2,2087.2,0.63594565]
[1770507584474,0.57794149,2088.2,2087.3,0.63003201]
[1770507589270,2.85355331,2088.4,2087.3,0.63003201]